Cogmind - Beta 13 @@@ ROGUE MODE // 2024.04.26 @ 09:25:33 Player: Lena Result: Destroyed by DF-PHQ(R) with Subdweller Shrapnel Launcher Performance ------------- Evolutions (0) 0 Regions Visited (2) 400 Robots Destroyed (16) 80 Value Destroyed (337) 337 Prototype IDs (2) 40 Alien Tech Used (0) 0 Bonus (0) 0 TOTAL SCORE: 857 Bonus ------- None Cogmind --------- Core Integrity 0/250 Matter 245/300 Energy 98/100 System Corruption 0% Temperature Cool (0) Movement Treading (160) Location -10/Subcaves Parts ------- > --- POWER (1) -------- (None) > --- PROPULSION (2) --- Light Treads Light Treads > --- UTILITY (2) ------ Medium Storage Unit Seismic Detector > --- WEAPON (2) ------- Medium Laser > --- INVENTORY (10) --- Aluminum Leg Aluminum Leg Medium Storage Unit Large Storage Unit Structural Scanner Sensor Array Scrap Shield Grenade Launcher Peak State ------------ > --- POWER ------------ Ion Engine > --- PROPULSION ------- Improved Aluminum Leg Improved Aluminum Leg > --- UTILITY ---------- Large Storage Unit Structural Scanner > --- WEAPON ----------- Medium Laser Light Assault Rifle > --- INVENTORY -------- Light Ion Engine Light Treads Light Treads Aluminum Leg Aluminum Leg Small Storage Unit Medium Storage Unit Medium Storage Unit Large Storage Unit Medium Laser Small Laser Grenade Launcher [Rating: 10] Favorites ----------- Power Ion Engine Engine Ion Engine Propulsion Light Treads Treads Light Treads Leg Improved Aluminum Leg Utility Structural Scanner Device Structural Scanner Storage Medium Storage Unit Weapon Medium Laser Energy Gun Medium Laser Ballistic Gun Light Assault Rifle Launcher Grenade Launcher Build | -11 -10 -10 ------- Run | Yrd Mat Sub Slots Evolved . | . . . Power . | . . . Propulsion . | . . . Utility . | . . . Weapon . | . . . Parts Attached 22 | 6 13 3 Power 3 | 1 2 . Engine 3 | 1 2 . Core . | . . . Reactor . | . . . Propulsion 6 | 2 2 2 Treads 4 | 2 . 2 Leg 2 | . 2 . Wheel . | . . . Hover . | . . . Flight . | . . . Utility 5 | 1 3 1 Device 2 | . 1 1 Storage 3 | 1 2 . Processor . | . . . Hackware . | . . . Protection . | . . . Artifact . | . . . Weapon 8 | 2 6 . Energy Gun 3 | 2 1 . Energy Cannon . | . . . Ballistic Gun 3 | . 3 . Ballistic Cannon . | . . . Launcher 2 | . 2 . Special Weapon . | . . . Impact Weapon . | . . . Slashing Weapon . | . . . Piercing Weapon . | . . . Special Melee Weapon . | . . . Unidentified Prototypes . | . . . Parts Lost 2 | . 1 1 Power 2 | . 1 1 Propulsion . | . . . Utility . | . . . Weapon . | . . . Highest Loss Streak 1 | . 1 1 To Critical Strikes . | . . . Average Slot Usage (%) 95 | . 98 85 Engine 14 | . 14 14 Treads 12 | . 9 26 Leg 15 | . 18 1 Device 13 | . 13 14 Storage 14 | . 14 14 Energy Gun 16 | . 16 14 Ballistic Gun 7 | . 9 . Naked Turns . | . . . Heaviest Build 30 | 14 30 17 Greatest Support 40 | 40 40 40 Greatest Overweight (x) 3 | 3 2 . Average Overweight (x) . | . . . Largest Inventory Capacity 15 | 8 15 10 Average Capacity 10 | 7 10 10 Most Carried 12 | 4 12 9 Average Carried 8 | 2 8 8 Final Capacity 10 | 8 10 10 Final Carried 9 | 4 9 9 Class Distribution -------------------- 100% | Mutant Dominant Class ---------------- Mutant | -10/Materials Mutant | -10/Subcaves Resources | -11 -10 -10 ----------- Run | Yrd Mat Sub Matter Collected 421 | 233 188 . Remotely . | . . . Salvage Created 406 | . 406 . Parts 28 | . 28 . Haulers Intercepted . | . . . Recyclers Shooed 1 | . 1 . Parts Field Recycled . | . . . Retrieved Matter . | . . . Parts Self-Destructed . | . . . Prevented . | . . . Kills | -11 -10 -10 ------- Run | Yrd Mat Sub Combat Hostiles Destroyed 12 | . 12 . Guns 9 | . 9 . AOE 2 | . 2 . Classes Destroyed 5 | . 5 . Worker 1 | . 1 . Tunneler 1 | . 1 . Watcher 2 | . 2 . Swarmer 6 | . 6 . Grunt 6 | . 6 . Best Kill Streak 5 | . 5 . Combat Bots Only 4 | . 4 . Max Kills in Single Turn 2 | . 2 . Gunslinging . | . . . Exploded 1 | . 1 . Melee . | . . . Uniques/NPCs Destroyed . | . . . Combat | -11 -10 -10 -------- Run | Yrd Mat Sub Hostile Shots Fired 52 | . 45 7 Missed 14 | . 11 3 Damage Taken 660 | . 446 214 Core 282 | . 138 144 Absorbed by Shields . | . . . Core Remaining (%) 100 | 100 . . Volleys Fired 47 | . 42 5 Largest 2 | . 2 1 Hottest 100 | . 100 50 Shots Fired 80 | . 75 5 Gun 76 | . 71 5 Cannon . | . . . Launcher 4 | . 4 . Special . | . . . Kinetic 21 | . 21 . Thermal 55 | . 50 5 Explosive 4 | . 4 . Electromagnetic . | . . . Robot Hit Streak 10 | . 10 9 Robot Miss Streak 3 | . 3 . Penetration Max . | . . . Secondary Targets 1 | . 1 . Max Gunslinging Chain 1 | . 1 . Shots Hit Robots 44 | . 39 5 Core Hits 24 | . 23 1 Critical Kills . | . . . Critical Parts Destroyed . | . . . Critical Strikes 5 | . 4 1 Burn 5 | . 4 1 Melee Attacks . | . . . Impact . | . . . Slashing . | . . . Piercing . | . . . Sneak Attacks . | . . . Combat Hostiles . | . . . Follow-up Attacks . | . . . Damage Inflicted 699 | . 638 61 Guns 546 | . 485 61 Cannons . | . . . Explosions 149 | . 149 . Melee . | . . . Ramming 4 | . 4 . Kinetic 98 | . 98 . Thermal 448 | . 387 61 Explosive 149 | . 149 . Electromagnetic . | . . . Impact . | . . . Slashing . | . . . Piercing . | . . . Highest Corruption . | . . . Average Corruption . | . . . Corruption Purged . | . . . Corruption Blocked . | . . . Overload Shots . | . . . Overflow Damage . | . . . Projectiles . | . . . Explosions . | . . . Melee . | . . . Knockbacks 1 | . 1 . Impact 1 | . 1 . Kinetic . | . . . Secondary . | . . . Self-Inflicted Damage 4 | . 4 . Shots 1 | . 1 . Rammed . | . . . Targets Rammed 1 | . 1 . Kicked 1 | . 1 . Crushed . | . . . Highest Temperature 285 | . 285 3 Average Temperature 102 | . 103 3 Received Heat Transfer 156 | . 102 54 Siege Activations . | . . . Robots Corrupted . | . . . Combat Hostiles . | . . . Parts Fried . | . . . Impact Corruptions . | . . . Robots Melted 1 | . 1 . Combat Hostiles 1 | . 1 . Parts Melted 4 | . 4 . Heat Transferred 1702 | . 1443 259 Parts Sabotaged . | . . . Parts Stolen . | . . . Parts Stripped . | . . . Power Chain Reactions . | . . . Alert | -11 -10 -10 ------- Run | Yrd Mat Sub Peak Influence 313 | . 313 . Initial . | . . . Average 152 | . 170 . Maximum Alert Level 1 | . 1 . Low Security (%) 66 | 100 62 . Level 1 33 | . 37 . Level 2 . | . . . Level 3 . | . . . Level 4 . | . . . Level 5 . | . . . High Security . | . . . Max Security . | . . . Squads Dispatched 3 | . 3 . Investigation 2 | . 2 . Extermination . | . . . Reinforcement 1 | . 1 . Assault . | . . . Garrison . | . . . Intercept . | . . . Searches Triggered . | . . . Construction Impeded . | . . . Haulers Reinforced . | . . . Active Scanning Responses . | . . . Cargo Convoy Interrupts . | . . . Stealth | -11 -10 -10 --------- Run | Yrd Mat Sub Distress Signals 2 | . 2 . Communications Jammed . | . . . Distress Signals . | . . . Times Spotted 26 | . 19 7 Peak Tracking Total 5 | . 4 5 Tactical Retreats 1 | . 1 . Traps | -11 -10 -10 ------- Run | Yrd Mat Sub Traps Triggered 2 | . 2 . Indirectly . | . . . Trap Hack Attempts . | . . . Triggered . | . . . Disarmed . | . . . Reprogrammed . | . . . Reused . | . . . Traps Extracted . | . . . Installed . | . . . Triggered . | . . . Machines | -11 -10 -10 ---------- Run | Yrd Mat Sub Machines Disabled 2 | . 2 . Max in Single Turn 1 | . 1 . Machines Repaired . | . . . Machines Dismantled . | . . . Machines Sabotaged . | . . . Overloaded Fab Kills . | . . . Hacking | -11 -10 -10 --------- Run | Yrd Mat Sub Machines Accessed 4 | . 4 . Terminals 2 | . 2 . Fabricators . | . . . Repair Stations 1 | . 1 . Recycling Units 1 | . 1 . Scanalyzers . | . . . Garrison Access . | . . . Total Hacks 9 | . 9 . Successful 4 | . 4 . Failed 5 | . 5 . Catastrophic 2 | . 2 . Database Lockouts . | . . . Manual . | . . . Terminals 5 | . 5 . Fabricators . | . . . Repair Stations 3 | . 3 . Recycling Units 1 | . 1 . Scanalyzers . | . . . Garrison Access . | . . . Terminal Hacks 2 | . 2 . Prototype ID Bank 1 | . 1 . Zone Layout 1 | . 1 . Fabricator Hacks . | . . . Repair Station Hacks 1 | . 1 . Scan Component 1 | . 1 . Recycling Unit Hacks 1 | . 1 . Report Inventory 1 | . 1 . Scanalyzer . | . . . Garrison Access Hacks . | . . . Unauthorized Hacks . | . . . Terminals . | . . . Fabricators . | . . . Repair Stations . | . . . Recycling Units . | . . . Scanalyzers . | . . . Garrison Access . | . . . Data Cores Recovered . | . . . Used . | . . . Hacking Detections 2 | . 2 . Full Trace Events 1 | . 1 . Feedback Events . | . . . Feedback Blocked . | . . . Robot Schematics Acquired . | . . . Robots Built . | . . . Authchips . | . . . Time . | . . . Total Robot Build Rating . | . . . Part Schematics Acquired . | . . . Parts Built . | . . . Authchips . | . . . Time . | . . . Total Part Build Rating . | . . . Parts Repaired . | . . . Time . | . . . Parts Recycled . | . . . Recycled Matter . | . . . Retrieved Matter . | . . . Retrieved Components . | . . . Parts Scanalyzed . | . . . Part Schematics Acquired . | . . . Parts Damaged . | . . . Bothacking | -11 -10 -10 ------------ Run | Yrd Mat Sub Used RIF Installer . | . . . Robots Hacked . | . . . Non-combat . | . . . Combat . | . . . Robot Hacks Applied . | . . . Relay Couplers Released . | . . . Fabnet Peak Effective % . | . . . Robots Rewired . | . . . Allies Hacked . | . . . Hacks Repelled . | . . . Allies | -11 -10 -10 -------- Run | Yrd Mat Sub Total Allies . | . . . Largest Group . | . . . Highest-Rated Group . | . . . Highest-Rated Ally . | . . . Total Orders . | . . . Ally Attacks . | . . . Total Damage . | . . . Kills . | . . . Allies Corrupted . | . . . Allies Melted . | . . . Intel | -11 -10 -10 ------- Run | Yrd Mat Sub Robot Analysis Total . | . . . Derelict Logs Recovered . | . . . Drone Launches . | . . . Drone Recoveries . | . . . Exploration | -11 -10 -10 ------------- Run | Yrd Mat Sub Turns Passed 1066 | 91 758 217 Spaces Moved 650 | 52 471 127 Core 11 | 11 . . Treads 267 | 41 108 118 Legs 372 | . 363 9 Wheels . | . . . Hover . | . . . Flight . | . . . Fastest Speed 50 | 50 120 120 Average Speed 136 | 151 129 157 Slowest Speed 260 | 200 260 160 Overloaded Moves . | . . . Propulsion Burnouts . | . . . Robots Hopped . | . . . Cave-ins Triggered . | . . . Exploration Rate (%) 27 | 4 70 8 Regions Visited 2 Branch Regions 1 Pre-discovered Areas . | . . . Known Exits Taken . | . . . Unknown Exits Taken 2 | 1 1 . Scrap Searched . | . . . Spaces Dug 13 | . 13 . Terrain Destroyed 25 | . 25 . Melee . | . . . Projectile . | . . . AOE 25 | . 25 . Terrain Rammed . | . . . Walls Destroyed . | . . . Machines Disabled . | . . . Actions | -11 -10 -10 --------- Run | Yrd Mat Sub Total 743 | 62 542 139 Wait 1 | . 1 . Move 648 | 51 470 127 Hop . | . . . Pick Up 16 | 5 10 1 Fast Attach 7 | 5 2 . Attach 2 | 1 1 . Detach . | . . . Swap 13 | . 10 3 Drop 8 | . 5 3 Fire 47 | . 42 5 Melee . | . . . Ram . | . . . Kick 1 | . 1 . Crush . | . . . Escape Stasis . | . . . Rewire . | . . . Trap . | . . . Miscellaneous . | . . . Route ------- -11/Scrapyard -10/Materials (discovered 4 exits: [*Mat x2] / [*Min] / [*Sub]) -10/Subcaves History --------- Turn | Location | Event 30 | -11/Scrapyard | Discovered new exit (range 15) 92 | -11/Scrapyard | Entered Materials 332 | -10/Materials | Build established: Mutant 404 | -10/Materials | Discovered new exit (range 9) 497 | -10/Materials | Discovered new exit (range 9) 616 | -10/Materials | Discovered new exit (range 5) 673 | -10/Materials | Core integrity fell below 50% 745 | -10/Materials | Discovered new exit (range 16) 850 | -10/Materials | Entered Subcaves 1051 | -10/Subcaves | Ambushed by swarm of Subdwellers 1060 | -10/Subcaves | Core integrity fell below 20% 1067 | -10/Subcaves | Destroyed by DF-PHQ(R) with Subdweller Shrapnel Launcher Last Messages --------------- I6-J98(R) emerges from the Twisted Machinery. U0-UBU(R) emerges from the Twisted Machinery. JO-3L7(R) emerges from the Twisted Machinery. W4-8RD(g): "Sorry we're late! Had another grouchy Sub to deal with. Who's the new fellow?" W8-8HE(R) suffers critical hit (Destroy). W8-8HE(R) destroyed. I6-J98(R) suffers critical hit (Burn). HV Slug penetrates I6-J98(R). I6-J98(R) suffers critical hit (Destroy). I6-J98(R) knocked back. U0-UBU(R) destroyed. HV Slug penetrates I6-J98(R). I6-J98(R) suffers critical hit (Destroy). E7-FXY(R) emerges from the Twisted Machinery. Lgt. Ion Engine destroyed. SZ-OZ0(R) emerges from the Twisted Machinery. E7-FXY(R) knocked back. 4T-HRE(h) destroyed. Map ----- +----------------------------------------------------+ | ?????????????????????????????????????????????????? | | ?????????????????????????????????????????????????? | | ?????????????????????????????????????????????????? | | ?????????????????????????????????????????????????? | | ?????????????????????????????????????????????????? | | ?????????????????????????????????????????????????? | | ?????????????????????????????????????????????????? | | ?????????????????????????????????????????????????? | | ?????????????????????????????????????????????????? | | ?????????????????????????????????????????????????? | | ?????????????????????????????????????????????????? | | ?????????????????????????????????????????????????? | | ?????????????????????????????????????????????????? | | ?????????????????????????????????????????????????? | | ?????????????????????????????????????????????????? | | ??????????????????????????????????? #??????????? | | ??????????????????????????????????? ##?????????? | | ?????????????????????????????????? #?????????? | | ?????????????????????????????????? #?????????? | | ?????????????????????????????????? #?????????? | | ??????????????????#######????????? #?????????? | | ??????????????????#*RR#]####?????? ##????? ?? | | ?????????????????##"%![%= #?????? #????? ?? | | ?????????????????#"R]R&R! ##?????? #????? ?? | | ????????????????#"#"##%=[ #????## #????? ?? | | ??????????????????######g@;##?### #### ?? | | ??????????????????????# g ### #?# | | ??????????????????????## g # ## | | ???????????????????????# #????# ? | | ???????????????????????## #### #######?? ?? | | ????????????????????????###??### ##### #?? #?? | | ???????????????????????????????# ##? #?? | | ???????????????????????????????## ### ##? | | ????????????????????????????????## #? | | ?????????????????????????????????##### #? | | ???????????????????????????###??????#### ##? | | ??????????????????????????##"#??????# ## #?? | | ?????????????????????????##" #?###?## #?? | | ????????????????????????##"" ### #?# #?? | | ???????????????????????##"" ## ### #?? | | ???????????????????????#""" #?? | | ???????????????????????##" ##?? | | ????????????????????????## ##??? | | ?????????????????????????### ## #### ##???? | | ??????????????????????#"######### #### #????? | | ??????????????????????"" """###?### ## ##????? | | ???????????????????????""""" ##### ##????? | | ??????????????????????" #""" # # #####?? | | ????????????????????????###" ##### ######? | | ??????????????????????????## #### ##?### ###? | +----------------------------------------------------+ Best States ------------- Heat Dissipation 25 Energy Generation 10 Energy Capacity 250 Matter Stores 300 Matter Capacity 300 Sight Range 16 Terrain Scan Density 10 Evasion (%) 55 Recoil Reduction 2 Item Schematics ----------------- None Robot Schematics ------------------ None Fabricated ------------ Nothing Alien Tech Used ----------------- None Achievements -------------- None Challenges ------------ None Game ------ Seed SlugAssembledUnit Manual? 0 Play Time 00:15:28 Cumulative 2.3 hours Start 2024.04.26 @ 09:11:19 End 2024.04.26 @ 09:25:33 Sessions 1 Manual Loads 0 Difficulty Rogue Special Mode None Game No. 6 Rogue 6 Adventurer 0 Explorer 0 Win Type - Total 0 Types 0/0/0/0/0/0/0/0/0 Lore% 2 Gallery% 4 Achievement% 4 Wizard Run 0 Options --------- Layout 1 ASCII 0 Keyboard 0 Movement Mouse Keybinds 0 Fullscreen 0 Font 42/SmallcapsGlow Map View 50x35 Zoom Use 0% Tactical HUD 0 Map Filters NONE Filters NONE Steam 1 RUN: 0644fb45-7449-4667-82fa-435196300ca8